[Event "Titled Tuesday Blitz March 08 Early 2022"]
[White "Orlov, Georgi"]
[Black "Shyaamnikhil P"]
[WhiteFideId "2011271"]
[BlackFideId "5024218"]
[WhiteElo "2533"]
[BlackElo "2329"]
[Result "1/2-1/2"]
[Round "06"]
[TimeControl "180+1"]
[Date "2022.03.09"]
[WhiteClock "0:00:13"]
[BlackClock "0:00:16"]

1. e4 {[%clk 0:02:19]}  e5 {[%clk 0:02:56]} 2. Nf3 {[%clk 0:02:18]}  Nc6 {[%clk 0:02:56]} 3. Bb5 {[%clk 0:02:18]}  a6 {[%clk 0:02:56]} 4. Bxc6 {[%clk 0:02:18]}  dxc6 {[%clk 0:02:55]} 5. O-O {[%clk 0:02:19]}  f6 {[%clk 0:02:44]} 6. d4 {[%clk 0:02:17]}  exd4 {[%clk 0:02:45]} 7. Nxd4 {[%clk 0:02:12]}  c5 {[%clk 0:02:45]} 8. Nb3 {[%clk 0:02:12]}  Qxd1 {[%clk 0:02:42]} 9. Rxd1 {[%clk 0:02:11]}  b6 {[%clk 0:02:34]} 10. Bf4 {[%clk 0:02:09]}  Ra7 {[%clk 0:02:33]} 11. a4 {[%clk 0:02:06]}  Ne7 {[%clk 0:02:20]} 12. Nc3 {[%clk 0:01:58]}  h5 {[%clk 0:02:14]} 13. a5 {[%clk 0:01:50]}  Ng6 {[%clk 0:02:11]} 14. Be3 {[%clk 0:01:47]}  Bd7 {[%clk 0:01:46]} 15. axb6 {[%clk 0:01:38]}  cxb6 {[%clk 0:01:43]} 16. Nd5 {[%clk 0:01:37]}  Bc6 {[%clk 0:01:37]} 17. Nxb6 {[%clk 0:01:35]}  Bxe4 {[%clk 0:01:37]} 18. Nxc5 {[%clk 0:01:21]}  Bxc2 {[%clk 0:01:34]} 19. Rdc1 {[%clk 0:01:17]}  Bxc5 {[%clk 0:01:32]} 20. Bxc5 {[%clk 0:01:16]}  Bd3 {[%clk 0:01:22]} 21. Rc3 {[%clk 0:01:14]}  Bb5 {[%clk 0:01:20]} 22. Nc8 {[%clk 0:01:00]}  Rc7 {[%clk 0:01:18]} 23. Re1+ {[%clk 0:00:56]}  Kf7 {[%clk 0:01:13]} 24. Nd6+ {[%clk 0:00:56]}  Kg8 {[%clk 0:01:13]} 25. Nxb5 {[%clk 0:00:33]}  axb5 {[%clk 0:01:14]} 26. b4 {[%clk 0:00:27]}  Kf7 {[%clk 0:01:13]} 27. Rd3 {[%clk 0:00:23]}  Ra8 {[%clk 0:01:08]} 28. Rd5 {[%clk 0:00:20]}  Nf4 {[%clk 0:01:02]} 29. Rd6 {[%clk 0:00:18]}  Ra2 {[%clk 0:00:39]} 30. g3 {[%clk 0:00:17]}  Ng6 {[%clk 0:00:35]} 31. Rb6 {[%clk 0:00:16]}  Ne5 {[%clk 0:00:31]} 32. Kg2 {[%clk 0:00:16]}  Nd3 {[%clk 0:00:28]} 33. Rf1 {[%clk 0:00:16]}  Nxc5 {[%clk 0:00:28]} 34. bxc5 {[%clk 0:00:16]}  Rxc5 {[%clk 0:00:29]} 35. Rb7+ {[%clk 0:00:16]}  Kg6 {[%clk 0:00:29]} 36. h4 {[%clk 0:00:17]}  Rb2 {[%clk 0:00:27]} 37. Re1 {[%clk 0:00:15]}  Rf5 {[%clk 0:00:27]} 38. Rf1 {[%clk 0:00:14]}  b4 {[%clk 0:00:24]} 39. Rb8 {[%clk 0:00:13]}  b3 {[%clk 0:00:24]} 40. Rb7 {[%clk 0:00:13]}  Kh6 {[%clk 0:00:23]} 41. Kg1 {[%clk 0:00:13]}  Re5 {[%clk 0:00:18]} 42. Kg2 {[%clk 0:00:13]}  Ree2 {[%clk 0:00:18]} 43. Kf3 {[%clk 0:00:13]}  Kg6 {[%clk 0:00:17]} 44. Rb5 {[%clk 0:00:12]}  Kh6 {[%clk 0:00:17]} 45. Rxb3 {[%clk 0:00:12]}  Rxf2+ {[%clk 0:00:16]} 46. Rxf2 {[%clk 0:00:12]}  Rxb3+ {[%clk 0:00:17]} 47. Kg2 {[%clk 0:00:13]}  Kg6 {[%clk 0:00:17]} 48. Rc2 {[%clk 0:00:13]}  Rb5 {[%clk 0:00:17]} 49. Rf2 {[%clk 0:00:14]}  Rf5 {[%clk 0:00:16]} 50. Re2 {[%clk 0:00:14]}  Re5 {[%clk 0:00:16]} 51. Rf2 {[%clk 0:00:14]}  Kf7 {[%clk 0:00:17]} 52. Rf4 {[%clk 0:00:14]}  Ke6 {[%clk 0:00:17]} 53. Ra4 {[%clk 0:00:13]}  Re2+ {[%clk 0:00:17]} 54. Kf3 {[%clk 0:00:13]}  Rd2 {[%clk 0:00:17]} 55. Ra5 {[%clk 0:00:14]}  Rd5 {[%clk 0:00:17]} 56. Ra6+ {[%clk 0:00:14]}  Kf5 {[%clk 0:00:16]} 57. Ra3 {[%clk 0:00:13]}  Rd4 {[%clk 0:00:16]} 58. Ra5+ {[%clk 0:00:12]}  Kg6 {[%clk 0:00:17]} 59. Ra6 {[%clk 0:00:12]}  Rd5 {[%clk 0:00:17]} 60. Kf4 {[%clk 0:00:11]}  Rd4+ {[%clk 0:00:17]} 61. Kf3 {[%clk 0:00:12]}  Rd1 {[%clk 0:00:17]} 62. Ra5 {[%clk 0:00:12]}  Rf1+ {[%clk 0:00:17]} 63. Kg2 {[%clk 0:00:12]}  Rf5 {[%clk 0:00:17]} 64. Ra7 {[%clk 0:00:12]}  Rc5 {[%clk 0:00:17]} 65. Ra6 {[%clk 0:00:13]}  Kf5 {[%clk 0:00:17]} 66. Ra7 {[%clk 0:00:13]}  g5 {[%clk 0:00:17]} 67. hxg5 {[%clk 0:00:12]}  fxg5 {[%clk 0:00:17]} 68. Ra4 {[%clk 0:00:13]}  Rc2+ {[%clk 0:00:16]} 69. Kf3 {[%clk 0:00:13]}  g4+ {[%clk 0:00:16]} 70. Ke3 {[%clk 0:00:13]}  Rg2 {[%clk 0:00:16]} 71. Ra5+ {[%clk 0:00:14]}  Kg6 {[%clk 0:00:16]} 72. Kf4 {[%clk 0:00:14]}  Rf2+ {[%clk 0:00:16]} 73. Ke4 {[%clk 0:00:14]}  Rf3 {[%clk 0:00:16]} 74. Ra6+ {[%clk 0:00:14]}  Kg5 {[%clk 0:00:15]} 75. Ra5+ {[%clk 0:00:14]}  Kg6 {[%clk 0:00:16]} 76. Ra6+ {[%clk 0:00:14]}  Kf7 {[%clk 0:00:16]} 77. Ra5 {[%clk 0:00:13]}  Kg6 {[%clk 0:00:16]} 1/2-1/2


[Site "https://www.chess.com"]

[Event "Titled Tuesday Blitz March 08 Early 2022"]
[White "Papasimakopoulos, Alexandros"]
[Black "Taichman, Ori"]
[WhiteFideId "4244125"]
[BlackFideId "2804069"]
[WhiteElo "2340"]
[BlackElo "2227"]
[Result "0-1"]
[Round "06"]
[TimeControl "180+1"]
[Date "2022.03.09"]
[WhiteClock "0:00:05"]
[BlackClock "0:00:22"]

1. c4 {[%clk 0:02:52]}  g5 {[%clk 0:02:58]} 2. d4 {[%clk 0:02:51]}  Bg7 {[%clk 0:02:58]} 3. Bxg5 {[%clk 0:02:50]}  c5 {[%clk 0:02:58]} 4. e3 {[%clk 0:02:38]}  Qb6 {[%clk 0:02:44]} 5. Qd2 {[%clk 0:02:30]}  cxd4 {[%clk 0:02:42]} 6. exd4 {[%clk 0:02:30]}  Qxd4 {[%clk 0:02:39]} 7. Nc3 {[%clk 0:02:24]}  Nc6 {[%clk 0:02:31]} 8. Nf3 {[%clk 0:02:14]}  Qxd2+ {[%clk 0:02:30]} 9. Kxd2 {[%clk 0:02:09]}  Nf6 {[%clk 0:02:27]} 10. Bd3 {[%clk 0:02:04]}  Ng4 {[%clk 0:02:16]} 11. Bh4 {[%clk 0:01:59]}  O-O {[%clk 0:01:57]} 12. Rae1 {[%clk 0:01:54]}  Bh6+ {[%clk 0:01:51]} 13. Kd1 {[%clk 0:01:46]}  f6 {[%clk 0:01:35]} 14. Nd5 {[%clk 0:01:30]}  e6 {[%clk 0:01:26]} 15. h3 {[%clk 0:01:30]}  exd5 {[%clk 0:01:24]} 16. hxg4 {[%clk 0:01:29]}  Nb4 {[%clk 0:01:23]} 17. Bf1 {[%clk 0:01:16]}  dxc4 {[%clk 0:01:22]} 18. Bxc4+ {[%clk 0:01:12]}  d5 {[%clk 0:01:22]} 19. Bb3 {[%clk 0:01:10]}  Bxg4 {[%clk 0:01:21]} 20. Bg3 {[%clk 0:01:07]}  Bg7 {[%clk 0:01:13]} 21. Bd6 {[%clk 0:01:07]}  Nd3 {[%clk 0:01:11]} 22. Bxd5+ {[%clk 0:00:43]}  Kh8 {[%clk 0:01:09]} 23. Bxf8 {[%clk 0:00:43]}  Bxf8 {[%clk 0:00:57]} 24. Re2 {[%clk 0:00:36]}  Rd8 {[%clk 0:00:57]} 25. Rh4 {[%clk 0:00:18]}  Rxd5 {[%clk 0:00:55]} 26. Rxg4 {[%clk 0:00:18]}  Nxf2+ {[%clk 0:00:54]} 27. Ke1 {[%clk 0:00:18]}  Nxg4 {[%clk 0:00:55]} 28. Re8 {[%clk 0:00:16]}  Kg7 {[%clk 0:00:54]} 29. Rb8 {[%clk 0:00:17]}  Rb5 {[%clk 0:00:53]} 30. b3 {[%clk 0:00:16]}  Ne3 {[%clk 0:00:44]} 31. Nd4 {[%clk 0:00:16]}  Rb6 {[%clk 0:00:43]} 32. g3 {[%clk 0:00:14]}  Bc5 {[%clk 0:00:42]} 33. Nf3 {[%clk 0:00:12]}  Bd6 {[%clk 0:00:40]} 34. Ra8 {[%clk 0:00:12]}  Bxg3+ {[%clk 0:00:40]} 35. Ke2 {[%clk 0:00:12]}  Nd5 {[%clk 0:00:39]} 36. Rxa7 {[%clk 0:00:12]}  h5 {[%clk 0:00:36]} 37. Nd4 {[%clk 0:00:12]}  h4 {[%clk 0:00:34]} 38. Kf3 {[%clk 0:00:12]}  Kg6 {[%clk 0:00:33]} 39. Ra8 {[%clk 0:00:12]}  Be5 {[%clk 0:00:31]} 40. Rg8+ {[%clk 0:00:12]}  Kf7 {[%clk 0:00:31]} 41. Rh8 {[%clk 0:00:12]}  Bg3 {[%clk 0:00:31]} 42. Nf5 {[%clk 0:00:09]}  Ra6 {[%clk 0:00:27]} 43. Rb8 {[%clk 0:00:05]}  Bxb8 {[%clk 0:00:22]} 0-1


[Site "https://www.chess.com"]

[Event "Titled Tuesday Blitz March 08 Early 2022"]
[White "Petrovic, Aleksa"]
[Black "Sarkar, Justin"]
[WhiteFideId "967629"]
[BlackFideId "2010011"]
[WhiteElo "2245"]
[BlackElo "2038"]
[Result "1-0"]
[Round "06"]
[TimeControl "180+1"]
[Date "2022.03.09"]
[WhiteClock "0:00:31"]
[BlackClock "0:00:01"]

1. d4 {[%clk 0:03:00]}  Nf6 {[%clk 0:02:51]} 2. c4 {[%clk 0:03:00]}  e6 {[%clk 0:02:51]} 3. Nc3 {[%clk 0:03:00]}  Bb4 {[%clk 0:02:50]} 4. Qc2 {[%clk 0:03:00]}  b6 {[%clk 0:02:45]} 5. a3 {[%clk 0:02:59]}  Bxc3+ {[%clk 0:02:45]} 6. Qxc3 {[%clk 0:03:00]}  Bb7 {[%clk 0:02:45]} 7. Bg5 {[%clk 0:03:00]}  h6 {[%clk 0:02:43]} 8. Bh4 {[%clk 0:02:59]}  d6 {[%clk 0:02:40]} 9. f3 {[%clk 0:02:58]}  Nbd7 {[%clk 0:02:34]} 10. O-O-O {[%clk 0:02:47]}  Qe7 {[%clk 0:02:11]} 11. Bf2 {[%clk 0:02:45]}  c5 {[%clk 0:01:51]} 12. e4 {[%clk 0:02:43]}  O-O {[%clk 0:01:06]} 13. Kb1 {[%clk 0:02:24]}  Rac8 {[%clk 0:00:45]} 14. d5 {[%clk 0:02:22]}  exd5 {[%clk 0:00:40]} 15. cxd5 {[%clk 0:02:17]}  a6 {[%clk 0:00:36]} 16. Ne2 {[%clk 0:02:13]}  b5 {[%clk 0:00:30]} 17. Ng3 {[%clk 0:02:13]}  g6 {[%clk 0:00:28]} 18. Qc1 {[%clk 0:02:03]}  Kh7 {[%clk 0:00:27]} 19. Be3 {[%clk 0:01:36]}  Ng8 {[%clk 0:00:20]} 20. Bd3 {[%clk 0:01:25]}  c4 {[%clk 0:00:18]} 21. Bc2 {[%clk 0:01:24]}  Nc5 {[%clk 0:00:17]} 22. h4 {[%clk 0:01:22]}  Nb3 {[%clk 0:00:15]} 23. Bxb3 {[%clk 0:01:20]}  cxb3 {[%clk 0:00:15]} 24. Qd2 {[%clk 0:01:18]}  Rc2 {[%clk 0:00:14]} 25. Qe1 {[%clk 0:01:03]}  Rxg2 {[%clk 0:00:10]} 26. Ne2 {[%clk 0:00:39]}  Rc8 {[%clk 0:00:08]} 27. Qf1 {[%clk 0:00:36]}  Rxe2 {[%clk 0:00:05]} 28. Qxe2 {[%clk 0:00:37]}  Rc2 {[%clk 0:00:05]} 29. Qd3 {[%clk 0:00:36]}  Qf6 {[%clk 0:00:02]} 30. Qxb3 {[%clk 0:00:34]}  Re2 {[%clk 0:00:01]} 31. Bd4 {[%clk 0:00:32]}  Qf4 {[%clk 0:00:01]} 32. Qd3 {[%clk 0:00:32]}  Qg3 {[%clk 0:00:01]} 33. Qxe2 {[%clk 0:00:31]} 1-0


[Site "https://www.chess.com"]

[Event "Titled Tuesday Blitz March 08 Early 2022"]
[White "Roman, Rodrigo"]
[Black "Soderstrom, Adrian"]
[WhiteFideId "3701220"]
[BlackFideId "1745786"]
[WhiteElo "2001"]
[BlackElo "2107"]
[Result "0-1"]
[Round "06"]
[TimeControl "180+1"]
[Date "2022.03.09"]
[WhiteClock "0:00:12"]
[BlackClock "0:00:10"]

1. c4 {[%clk 0:03:00]}  e5 {[%clk 0:02:59]} 2. Nc3 {[%clk 0:03:01]}  Nf6 {[%clk 0:03:00]} 3. g3 {[%clk 0:03:01]}  d5 {[%clk 0:02:59]} 4. cxd5 {[%clk 0:03:00]}  c6 {[%clk 0:03:00]} 5. dxc6 {[%clk 0:02:59]}  Nxc6 {[%clk 0:03:00]} 6. Bg2 {[%clk 0:02:59]}  Bc5 {[%clk 0:03:01]} 7. d3 {[%clk 0:03:00]}  e4 {[%clk 0:03:00]} 8. Nxe4 {[%clk 0:02:55]}  Nxe4 {[%clk 0:02:59]} 9. Bxe4 {[%clk 0:02:55]}  O-O {[%clk 0:02:55]} 10. e3 {[%clk 0:02:51]}  Re8 {[%clk 0:02:45]} 11. Bg2 {[%clk 0:02:51]}  Ne5 {[%clk 0:02:42]} 12. d4 {[%clk 0:02:49]}  Bxd4 {[%clk 0:02:36]} 13. Ne2 {[%clk 0:02:45]}  Qa5+ {[%clk 0:02:23]} 14. Qd2 {[%clk 0:02:31]}  Nd3+ {[%clk 0:02:21]} 15. Kf1 {[%clk 0:02:31]}  Qxd2 {[%clk 0:02:17]} 16. Bxd2 {[%clk 0:02:32]}  Bxb2 {[%clk 0:02:17]} 17. Rb1 {[%clk 0:02:29]}  Bf6 {[%clk 0:02:15]} 18. Nf4 {[%clk 0:02:12]}  Nxf4 {[%clk 0:02:09]} 19. gxf4 {[%clk 0:02:12]}  Bf5 {[%clk 0:02:08]} 20. Rxb7 {[%clk 0:02:09]}  Rad8 {[%clk 0:02:07]} 21. Ke2 {[%clk 0:02:04]}  Bd3+ {[%clk 0:02:04]} 22. Ke1 {[%clk 0:02:02]}  Rb8 {[%clk 0:01:56]} 23. Kd1 {[%clk 0:01:11]}  Rxb7 {[%clk 0:01:50]} 24. Bxb7 {[%clk 0:01:12]}  Rb8 {[%clk 0:01:50]} 25. Bd5 {[%clk 0:01:12]}  Rb2 {[%clk 0:01:16]} 26. h4 {[%clk 0:00:37]}  a5 {[%clk 0:00:58]} 27. h5 {[%clk 0:00:36]}  h6 {[%clk 0:00:57]} 28. f3 {[%clk 0:00:33]}  a4 {[%clk 0:00:56]} 29. Rg1 {[%clk 0:00:30]}  Kf8 {[%clk 0:00:52]} 30. a3 {[%clk 0:00:26]}  Be7 {[%clk 0:00:38]} 31. Bc1 {[%clk 0:00:21]}  Rb5 {[%clk 0:00:35]} 32. Be4 {[%clk 0:00:20]}  Bc4 {[%clk 0:00:29]} 33. f5 {[%clk 0:00:18]}  Bb3+ {[%clk 0:00:29]} 34. Ke2 {[%clk 0:00:16]}  Rc5 {[%clk 0:00:28]} 35. Bd2 {[%clk 0:00:15]}  Rc7 {[%clk 0:00:27]} 36. Rc1 {[%clk 0:00:13]}  Bc4+ {[%clk 0:00:16]} 37. Bd3 {[%clk 0:00:09]}  Bxd3+ {[%clk 0:00:16]} 38. Kxd3 {[%clk 0:00:09]}  Rd7+ {[%clk 0:00:17]} 39. Ke2 {[%clk 0:00:10]}  Bxa3 {[%clk 0:00:17]} 40. Ra1 {[%clk 0:00:10]}  Bb2 {[%clk 0:00:07]} 41. Rxa4 {[%clk 0:00:10]}  Ke7 {[%clk 0:00:08]} 42. e4 {[%clk 0:00:09]}  Kf6 {[%clk 0:00:08]} 43. Bf4 {[%clk 0:00:09]}  Ke7 {[%clk 0:00:04]} 44. Ra6 {[%clk 0:00:08]}  Rb7 {[%clk 0:00:04]} 45. Be5 {[%clk 0:00:08]}  Bxe5 {[%clk 0:00:03]} 46. Ra5 {[%clk 0:00:08]}  Kf6 {[%clk 0:00:02]} 47. Ra6+ {[%clk 0:00:08]}  Kg5 {[%clk 0:00:02]} 48. Ra5 {[%clk 0:00:08]}  Kf4 {[%clk 0:00:03]} 49. Ra8 {[%clk 0:00:09]}  Rb2+ {[%clk 0:00:02]} 50. Kd3 {[%clk 0:00:09]}  Rb3+ {[%clk 0:00:03]} 51. Kc4 {[%clk 0:00:09]}  Rxf3 {[%clk 0:00:03]} 52. Rf8 {[%clk 0:00:08]}  Kxe4 {[%clk 0:00:04]} 53. Rxf7 {[%clk 0:00:09]}  Rxf5 {[%clk 0:00:05]} 54. Ra7 {[%clk 0:00:09]}  Kf4 {[%clk 0:00:05]} 55. Ra2 {[%clk 0:00:09]}  Bf6 {[%clk 0:00:05]} 56. Rf2+ {[%clk 0:00:09]}  Kg5 {[%clk 0:00:06]} 57. Rg2+ {[%clk 0:00:09]}  Kxh5 {[%clk 0:00:06]} 58. Kd3 {[%clk 0:00:10]}  g5 {[%clk 0:00:06]} 59. Ke4 {[%clk 0:00:10]}  Kg6 {[%clk 0:00:07]} 60. Rh2 {[%clk 0:00:10]}  Rf4+ {[%clk 0:00:08]} 61. Kd5 {[%clk 0:00:10]}  h5 {[%clk 0:00:09]} 62. Ke6 {[%clk 0:00:10]}  h4 {[%clk 0:00:10]} 63. Rc2 {[%clk 0:00:11]}  Bd4 {[%clk 0:00:10]} 64. Rc8 {[%clk 0:00:11]}  h3 {[%clk 0:00:10]} 65. Rg8+ {[%clk 0:00:11]}  Kh5 {[%clk 0:00:10]} 66. Rh8+ {[%clk 0:00:12]}  Bxh8 {[%clk 0:00:10]} 0-1


[Site "https://www.chess.com"]

[Event "Titled Tuesday Blitz March 08 Early 2022"]
[White "Sailer, Mike"]
[Black "Polster, Christian"]
[WhiteFideId "2012901"]
[BlackFideId "12965081"]
[WhiteElo "2109"]
[BlackElo "2277"]
[Result "0-1"]
[Round "06"]
[TimeControl "180+1"]
[Date "2022.03.09"]
[WhiteClock "0:00:01"]
[BlackClock "0:00:07"]

1. d4 {[%clk 0:03:00]}  d5 {[%clk 0:02:57]} 2. Nf3 {[%clk 0:03:00]}  Nf6 {[%clk 0:02:53]} 3. Bf4 {[%clk 0:03:01]}  c5 {[%clk 0:02:53]} 4. e3 {[%clk 0:03:01]}  Nc6 {[%clk 0:02:52]} 5. Nc3 {[%clk 0:03:02]}  Bf5 {[%clk 0:02:31]} 6. Be2 {[%clk 0:03:00]}  e6 {[%clk 0:02:20]} 7. O-O {[%clk 0:03:00]}  Bd6 {[%clk 0:02:11]} 8. Bxd6 {[%clk 0:03:00]}  Qxd6 {[%clk 0:02:12]} 9. Nb5 {[%clk 0:03:00]}  Qe7 {[%clk 0:02:05]} 10. dxc5 {[%clk 0:03:00]}  O-O {[%clk 0:02:00]} 11. Nd6 {[%clk 0:03:00]}  Bg6 {[%clk 0:01:56]} 12. a3 {[%clk 0:02:51]}  b6 {[%clk 0:01:30]} 13. b4 {[%clk 0:02:44]}  bxc5 {[%clk 0:01:28]} 14. bxc5 {[%clk 0:02:44]}  Ne4 {[%clk 0:01:22]} 15. Nxe4 {[%clk 0:02:37]}  Bxe4 {[%clk 0:01:20]} 16. c4 {[%clk 0:02:28]}  Qxc5 {[%clk 0:01:01]} 17. cxd5 {[%clk 0:02:28]}  Qxd5 {[%clk 0:00:59]} 18. Qxd5 {[%clk 0:02:24]}  Bxd5 {[%clk 0:01:00]} 19. Rfc1 {[%clk 0:02:20]}  Na5 {[%clk 0:00:41]} 20. Rc7 {[%clk 0:02:11]}  Nb3 {[%clk 0:00:41]} 21. Rb1 {[%clk 0:01:59]}  Rfc8 {[%clk 0:00:36]} 22. Rd7 {[%clk 0:01:52]}  Rc1+ {[%clk 0:00:22]} 23. Rxc1 {[%clk 0:01:52]}  Nxc1 {[%clk 0:00:23]} 24. Bf1 {[%clk 0:01:35]}  a5 {[%clk 0:00:18]} 25. Nd2 {[%clk 0:01:26]}  Nb3 {[%clk 0:00:15]} 26. Nxb3 {[%clk 0:01:22]}  Bxb3 {[%clk 0:00:16]} 27. g3 {[%clk 0:00:54]}  g6 {[%clk 0:00:14]} 28. Bb5 {[%clk 0:00:47]}  Kg7 {[%clk 0:00:13]} 29. Kf1 {[%clk 0:00:43]}  Rb8 {[%clk 0:00:13]} 30. a4 {[%clk 0:00:39]}  Rc8 {[%clk 0:00:12]} 31. Ke2 {[%clk 0:00:32]}  Rc2+ {[%clk 0:00:12]} 32. Rd2 {[%clk 0:00:32]}  Kf6 {[%clk 0:00:09]} 33. Rxc2 {[%clk 0:00:31]}  Bxc2 {[%clk 0:00:09]} 34. f4 {[%clk 0:00:21]}  Ke7 {[%clk 0:00:09]} 35. Kf3 {[%clk 0:00:18]}  f5 {[%clk 0:00:08]} 36. g4 {[%clk 0:00:17]}  Be4+ {[%clk 0:00:08]} 37. Kg3 {[%clk 0:00:17]}  Kd6 {[%clk 0:00:08]} 38. g5 {[%clk 0:00:13]}  e5 {[%clk 0:00:08]} 39. h4 {[%clk 0:00:12]}  Bc2 {[%clk 0:00:07]} 40. h5 {[%clk 0:00:10]}  exf4+ {[%clk 0:00:06]} 41. Kxf4 {[%clk 0:00:05]}  gxh5 {[%clk 0:00:06]} 42. Kg3 {[%clk 0:00:01]}  Ke5 {[%clk 0:00:05]} 43. Kh4 {[%clk 0:00:01]}  Ke4 {[%clk 0:00:06]} 44. Kxh5 {[%clk 0:00:02]}  Kxe3 {[%clk 0:00:06]} 45. Kh6 {[%clk 0:00:02]}  f4 {[%clk 0:00:07]} 46. Bc6 {[%clk 0:00:01]}  f3 {[%clk 0:00:07]} 0-1


[Site "https://www.chess.com"]

[Event "Titled Tuesday Blitz March 08 Early 2022"]
[White "Sargissyan, Sargis"]
[Black "Mikhailov, Viacheslav"]
[WhiteFideId "13303210"]
[BlackFideId "4187369"]
[WhiteElo "2174"]
[BlackElo "2381"]
[Result "0-1"]
[Round "06"]
[TimeControl "180+1"]
[Date "2022.03.09"]
[WhiteClock "0:00:02"]
[BlackClock "0:01:12"]

1. e4 {[%clk 0:03:00]}  d6 {[%clk 0:02:59]} 2. d4 {[%clk 0:03:00]}  Nf6 {[%clk 0:03:00]} 3. Nc3 {[%clk 0:03:01]}  g6 {[%clk 0:03:00]} 4. f4 {[%clk 0:03:01]}  Bg7 {[%clk 0:03:01]} 5. Nf3 {[%clk 0:03:01]}  O-O {[%clk 0:03:01]} 6. a3 {[%clk 0:03:02]}  Bg4 {[%clk 0:03:01]} 7. Bd3 {[%clk 0:02:50]}  Nc6 {[%clk 0:03:01]} 8. d5 {[%clk 0:02:23]}  Nd4 {[%clk 0:03:00]} 9. Be3 {[%clk 0:02:20]}  Nxf3+ {[%clk 0:02:55]} 10. gxf3 {[%clk 0:02:20]}  Bh5 {[%clk 0:02:55]} 11. Qd2 {[%clk 0:01:52]}  Bxf3 {[%clk 0:02:55]} 12. Rf1 {[%clk 0:01:52]}  Bh5 {[%clk 0:02:54]} 13. f5 {[%clk 0:01:36]}  c6 {[%clk 0:02:52]} 14. Bh6 {[%clk 0:01:32]}  Qb6 {[%clk 0:02:46]} 15. Bxg7 {[%clk 0:01:06]}  Kxg7 {[%clk 0:02:47]} 16. Qg5 {[%clk 0:00:32]}  Qxb2 {[%clk 0:02:44]} 17. Kd2 {[%clk 0:00:32]}  cxd5 {[%clk 0:02:41]} 18. Rfb1 {[%clk 0:00:28]}  Qxa1 {[%clk 0:02:25]} 19. Rxa1 {[%clk 0:00:28]}  dxe4 {[%clk 0:02:18]} 20. Nxe4 {[%clk 0:00:28]}  Rac8 {[%clk 0:02:15]} 21. Nxf6 {[%clk 0:00:26]}  exf6 {[%clk 0:02:16]} 22. Qf4 {[%clk 0:00:22]}  Rc5 {[%clk 0:02:11]} 23. Re1 {[%clk 0:00:21]}  Ra5 {[%clk 0:02:02]} 24. Qxd6 {[%clk 0:00:18]}  Bf3 {[%clk 0:01:44]} 25. Re7 {[%clk 0:00:17]}  Bc6 {[%clk 0:01:43]} 26. Bc4 {[%clk 0:00:10]}  Rxf5 {[%clk 0:01:42]} 27. Qc7 {[%clk 0:00:10]}  Bd5 {[%clk 0:01:33]} 28. Bxd5 {[%clk 0:00:08]}  Rxd5+ {[%clk 0:01:34]} 29. Kc1 {[%clk 0:00:09]}  Rh5 {[%clk 0:01:29]} 30. Kb2 {[%clk 0:00:08]}  b5 {[%clk 0:01:25]} 31. Re2 {[%clk 0:00:06]}  a5 {[%clk 0:01:25]} 32. Qxa5 {[%clk 0:00:06]}  Kg8 {[%clk 0:01:21]} 33. Qc7 {[%clk 0:00:05]}  f5 {[%clk 0:01:19]} 34. Qd7 {[%clk 0:00:04]}  f4 {[%clk 0:01:17]} 35. Re8 {[%clk 0:00:03]}  Rf5 {[%clk 0:01:17]} 36. Rxf8+ {[%clk 0:00:03]}  Kxf8 {[%clk 0:01:18]} 37. Qd6+ {[%clk 0:00:02]}  Kg7 {[%clk 0:01:17]} 38. Qd4+ {[%clk 0:00:02]}  Kh6 {[%clk 0:01:16]} 39. Kb3 {[%clk 0:00:02]}  f3 {[%clk 0:01:16]} 40. Qf2 {[%clk 0:00:02]}  Kg5 {[%clk 0:01:12]} 0-1


[Site "https://www.chess.com"]

[Event "Titled Tuesday Blitz March 08 Early 2022"]
[White "Shubenkova, Veronika"]
[Black "Morefield, Jason"]
[WhiteFideId "44124040"]
[BlackFideId "30920825"]
[WhiteElo "1938"]
[BlackElo "2171"]
[Result "0-1"]
[Round "06"]
[TimeControl "180+1"]
[Date "2022.03.09"]
[WhiteClock "0:01:04"]
[BlackClock "0:00:56"]

1. d4 {[%clk 0:03:00]}  d5 {[%clk 0:02:59]} 2. e3 {[%clk 0:03:00]}  Nf6 {[%clk 0:02:58]} 3. f4 {[%clk 0:03:00]}  Bf5 {[%clk 0:02:56]} 4. Bd3 {[%clk 0:03:00]}  Bxd3 {[%clk 0:02:56]} 5. Qxd3 {[%clk 0:03:00]}  e6 {[%clk 0:02:56]} 6. Qb5+ {[%clk 0:03:00]}  Nbd7 {[%clk 0:02:56]} 7. Qxb7 {[%clk 0:03:00]}  Bd6 {[%clk 0:02:50]} 8. Qa6 {[%clk 0:03:00]}  O-O {[%clk 0:02:50]} 9. Nf3 {[%clk 0:03:00]}  Ne4 {[%clk 0:02:50]} 10. O-O {[%clk 0:02:59]}  c5 {[%clk 0:02:50]} 11. Nbd2 {[%clk 0:02:59]}  Nb6 {[%clk 0:02:48]} 12. Nxe4 {[%clk 0:02:54]}  dxe4 {[%clk 0:02:49]} 13. Ne5 {[%clk 0:02:54]}  cxd4 {[%clk 0:02:35]} 14. exd4 {[%clk 0:02:53]}  Bxe5 {[%clk 0:02:36]} 15. dxe5 {[%clk 0:02:53]}  Qd4+ {[%clk 0:02:36]} 16. Kh1 {[%clk 0:02:52]}  Nc4 {[%clk 0:02:16]} 17. c3 {[%clk 0:02:44]}  Qd3 {[%clk 0:02:15]} 18. Rg1 {[%clk 0:02:42]}  Nxb2 {[%clk 0:02:10]} 19. Qxd3 {[%clk 0:02:37]}  Nxd3 {[%clk 0:02:11]} 20. Be3 {[%clk 0:02:36]}  Rfc8 {[%clk 0:02:08]} 21. Rgb1 {[%clk 0:02:20]}  Rxc3 {[%clk 0:02:06]} 22. Rb7 {[%clk 0:02:19]}  a5 {[%clk 0:02:03]} 23. Rab1 {[%clk 0:02:13]}  h5 {[%clk 0:02:02]} 24. Rf1 {[%clk 0:01:55]}  Nb4 {[%clk 0:01:54]} 25. Bd4 {[%clk 0:01:41]}  Rd3 {[%clk 0:01:51]} 26. Bg1 {[%clk 0:01:39]}  g6 {[%clk 0:01:33]} 27. a4 {[%clk 0:01:35]}  Rc8 {[%clk 0:01:28]} 28. Rb5 {[%clk 0:01:29]}  e3 {[%clk 0:01:25]} 29. Re1 {[%clk 0:01:15]}  Nc2 {[%clk 0:01:14]} 30. Rc1 {[%clk 0:01:14]}  e2 {[%clk 0:01:11]} 31. Rbb1 {[%clk 0:01:13]}  Rc4 {[%clk 0:01:05]} 32. g3 {[%clk 0:01:10]}  Na3 {[%clk 0:00:58]} 33. Rxc4 {[%clk 0:01:07]}  Nxb1 {[%clk 0:00:56]} 34. Re4 {[%clk 0:01:04]}  Nc3 {[%clk 0:00:56]} 0-1


[Site "https://www.chess.com"]